lending/lending_fUSD_20251015
["ID","MTS","AMOUNT","RATE_DAILY","PERIOD"]
[391305713,1760492628480,500.0,0.00030399,120]
[391305714,1760492706294,2500.0,0.000273,120]
[391305715,1760492716440,4979.59,0.00027397,120]
[391305716,1760492728898,2200.0,0.00030399,60]
[391305717,1760492741519,2000.0,0.00027397,120]
[391305718,1760492762488,200.0,0.00030399,120]
[391305722,1760492842374,3500.0,0.000273,120]
[391305723,1760492891350,2222.0,0.00027397,120]
[391305738,1760492952107,2277.0,0.00027397,120]
[391305753,1760492998735,555.0,0.00027397,120]
[391305754,1760493003370,2500.0,0.000273,120]
[391305777,1760493032347,-250.0,0.00013518,2]
[391305778,1760493032357,-1002.0134256,0.00013526,2]
[391305779,1760493032405,-417.88091739,0.00013526,2]
[391305784,1760493032442,-580.10565701,0.00013526,2]
[391305786,1760493032451,-250.0,0.00013533,2]
[391305788,1760493032460,-6938.94,0.00013547,2]
[391305790,1760493032469,-1200.0,0.00013606,2]
[391305791,1760493032479,-300.0,0.00013606,2]
[391305792,1760493032488,-1200.0,0.00013607,2]
[391305793,1760493032498,-150.0,0.00013607,2]
[391305794,1760493032506,-300.0,0.00013607,2]
[391305795,1760493032515,-43103.79704434,0.00013608,2]
[391305796,1760493032656,-68762.78503206,0.00013608,2]
[391305797,1760493032667,-18567.3679236,0.00013608,2]
[391305798,1760493032676,-198.1,0.00013688,2]
[391305799,1760493032685,-2037.72823803,0.00013694,2]
[391305800,1760493032694,-166.66,0.00013699,2]
[391305801,1760493032703,-175.0,0.000137,2]
[391305802,1760493032713,-555.0,0.00013718,2]
[391305803,1760493032722,-555.0,0.00013718,2]
[391305804,1760493032731,-555.0,0.00013718,2]
[391305805,1760493032740,-555.0,0.00013718,2]
[391305806,1760493032749,-230.0,0.00013718,2]
[391305807,1760493032759,-300.0,0.00013719,2]
[391305808,1760493032768,-300.0,0.00013719,2]
[391305809,1760493032777,-307.9415436,0.00013719,2]
[391305810,1760493032786,-555.0,0.00013813,2]
[391305811,1760493032795,-555.0,0.00013842,2]
[391305812,1760493032804,-166.66,0.00013843,2]
[391305813,1760493032814,-333.0,0.00013926,2]
[391305814,1760493032823,-1920.69,0.00013926,2]
[391305815,1760493032832,-513.11,0.00013931,2]
[391305816,1760493032843,-1500.0,0.00013937,2]
[391305817,1760493032853,-200.0,0.00013939,2]
[391305818,1760493032870,-250.0,0.00013945,7]
[391305819,1760493032881,-537.03,0.00013946,2]
[391305820,1760493032891,-1600.0,0.00013962,2]
[391305821,1760493032903,-3000.0,0.00013964,2]
[391305822,1760493032912,-1000.0,0.00013964,2]
[391305823,1760493032921,-166.66,0.00013987,2]
[391305824,1760493032931,-166.66,0.00014132,2]
[391305825,1760493032940,-474.58,0.000142,2]
[391305826,1760493032949,-949.16,0.000142,2]
[391305827,1760493032958,-456.13752508,0.00014241,2]
[391305828,1760493032969,-277.35679052,0.00014241,2]
[391305829,1760493032978,-166.66,0.00014276,2]
[391305830,1760493032987,-166.48,0.00014377,2]
[391305831,1760493032996,-166.66,0.0001442,2]
[391305832,1760493033005,-247.70459547,0.0001457,2]
[391305833,1760493033015,-877.85530358,0.00014592,2]
[391305834,1760493033024,-151.0,0.0001467,2]
[391305835,1760493033034,-151.0,0.0001467,2]
[391305836,1760493033043,-151.0,0.0001467,2]
[391305837,1760493033052,-151.0,0.0001467,2]
[391305838,1760493033061,-721.12765535,0.0001467,2]
[391305839,1760493033071,-151.0,0.0001467,2]
[391305840,1760493033080,-151.0,0.0001467,2]
[391305841,1760493033092,-151.0,0.0001467,2]
[391305842,1760493033101,-151.0,0.0001467,2]
[391305843,1760493033111,-151.0,0.0001467,2]
[391305844,1760493033121,-151.0,0.0001467,2]
[391305845,1760493033130,-151.0,0.0001467,2]
[391305846,1760493033140,-151.0,0.0001467,2]
[391305847,1760493033149,-151.0,0.0001467,2]
[391305848,1760493033158,-151.0,0.0001467,2]
[391305849,1760493033167,-151.0,0.0001467,2]
[391305850,1760493033177,-151.0,0.0001467,2]
[391305851,1760493033186,-151.0,0.0001467,2]
[391305852,1760493033195,-151.0,0.0001467,2]
[391305853,1760493033205,-151.0,0.0001467,2]
[391305854,1760493033215,-163.90538589,0.0001467,2]
[391305855,1760493033224,-201.26694162,0.0001467,2]
[391305856,1760493033233,-201.53296089,0.0001467,2]
[391305857,1760493033243,-201.53321539,0.0001467,2]
[391305858,1760493033252,-322.6107,0.0001467,2]
[391305859,1760493033261,-168.0,0.00014674,2]
[391305860,1760493033271,-255.0,0.00014722,2]
[391305861,1760493033280,-168.0,0.00014738,2]
[391305862,1760493033289,-24064.51467125,0.00014813,2]
[391305863,1760493033299,-2558.0492462,0.00014827,2]
[391305865,1760493038296,-294.75802627,0.00014827,2]
[391305866,1760493038351,-1000.0,0.00014827,2]
[391305870,1760493040294,-800.0,0.00014827,2]
[391305876,1760493040343,-34398.95907058,0.00014827,2]
[391305878,1760493040352,-1607.75823,0.0001483,2]
[391305880,1760493040361,-39051.76634305,0.00014831,2]
[391305882,1760493040370,-39051.76634305,0.00014844,2]
[391305884,1760493040379,-1607.75823,0.0001485,2]
[391305886,1760493040388,-130266.42818365,0.0001485,2]
[391305888,1760493040399,-2318.02417615,0.0001485,2]
[391305890,1760493040410,-230233.35250798,0.0001485,2]
[391305893,1760493040432,-2224.4773299,0.0001485,2]
[391305894,1760493040443,-105851.5371727,0.0001485,2]
[391305904,1760493043432,-200.0,0.0001392,2]
[391305906,1760493043441,-306.92861619,0.0001485,2]
[391305917,1760493045991,-501.18079579,0.0001485,2]
[391305918,1760493062354,200.0,0.00030399,120]
[391305920,1760493117391,740.92233098,0.00030399,120]
[391305926,1760493249077,491.58856582,0.00030399,120]
[391305927,1760493275407,2891.0,0.00027397,120]
[391305928,1760493316447,1148.0,0.00030399,60]
[391305929,1760493363882,200.0,0.00030399,120]
[391305930,1760493401944,201.99,0.00030399,60]
[391305932,1760493445747,30023.28350585,0.00030399,120]
[391305933,1760493448333,544.42,0.00027397,120]
[391305934,1760493539801,2648.09,0.00027397,120]
[391305935,1760493662050,200.0,0.00030406,120]
[391305939,1760493961294,200.0,0.00030408,120]
[391305940,1760494071532,2500.01,0.00027397,120]
[391305941,1760494087815,2500.02,0.00027397,120]
[391305954,1760494164514,2165.01,0.00027397,120]
[391305969,1760494232427,-253.58480811,0.00013098,2]
[391305970,1760494232468,-7123.05559189,0.00013098,2]
[391305971,1760494232478,-150.0,0.00013164,2]
[391305972,1760494232487,-254.01165387,0.00013245,2]
[391305973,1760494232497,-473.32,0.00013245,2]
[391305974,1760494232508,-1254.267015,0.00013245,2]
[391305975,1760494232549,-18.40133113,0.00013245,2]
[391305976,1760494232558,-195.91688317,0.00013326,2]
[391305977,1760494232567,-300.0,0.00013352,2]
[391305978,1760494232576,-1200.0,0.00013353,2]
[391305980,1760494232585,-730.43928454,0.00013354,2]
[391305982,1760494232595,-958.33510106,0.00013426,2]
[391305984,1760494232606,-241.66489894,0.00013426,2]
[391305986,1760494232615,-300.0,0.00013427,2]
[391305989,1760494232624,-203.99206076,0.00013427,2]
[391305993,1760494232636,-96.00793924,0.00013427,2]
[391305994,1760494232646,-1514.64042597,0.00013428,2]
[391305995,1760494232656,-741.47776478,0.00013428,2]
[391305996,1760494232667,-780.94247861,0.00013428,2]
[391305997,1760494232707,-711.49933064,0.00013428,2]
[391305998,1760494232716,-150.35579223,0.00013463,2]
[391305999,1760494232726,-150.42203251,0.00013463,2]
[391306000,1760494232735,-153.68332604,0.00013463,2]
[391306001,1760494232744,-151.03760685,0.00013463,2]
[391306002,1760494232754,-150.88532734,0.00013463,2]
[391306003,1760494232763,-151.37648693,0.00013463,2]
[391306004,1760494232772,-151.96578124,0.00013463,2]
[391306005,1760494232781,-150.57090201,0.00013463,2]
[391306006,1760494232790,-152.57688891,0.00013463,2]
[391306007,1760494232799,-155.13754041,0.00013463,2]
[391306008,1760494232808,-161.70331339,0.00013463,2]
[391306009,1760494232817,-153.77437997,0.00013463,2]
[391306010,1760494232828,-150.0,0.0001351,2]
[391306011,1760494232837,-5252.44,0.00013511,2]
[391306012,1760494232846,-6362.52,0.00013511,2]
[391306013,1760494232855,-19999.99,0.00013511,2]
[391306014,1760494232864,-1181.24,0.00013511,2]
[391306015,1760494232873,-666.0,0.0001363,3]
[391306016,1760494232883,-474.66,0.00013641,2]
[391306017,1760494232892,-570.0,0.00013699,2]
[391306018,1760494232901,-610.0,0.00013699,2]
[391306019,1760494232910,-4524.44,0.00013737,2]
[391306020,1760494232919,-2809.46,0.00013883,2]
[391306021,1760494232928,-200.0,0.00013883,2]
[391306022,1760494232938,-151.0,0.00013883,2]
[391306023,1760494232947,-151.0,0.00013883,2]
[391306024,1760494232956,-151.0,0.00013883,2]
[391306025,1760494232966,-151.0,0.00013883,2]
[391306026,1760494232975,-151.0,0.00013883,2]
[391306027,1760494232984,-151.0,0.00013883,2]
[391306028,1760494232993,-276.4752803,0.00013883,2]
[391306029,1760494233003,-151.0,0.00013883,2]
[391306030,1760494233019,-151.0,0.00013883,2]
[391306031,1760494233028,-151.0,0.00013883,2]
[391306032,1760494233038,-500.0,0.00013883,2]
[391306033,1760494233048,-500.0,0.00013883,2]
[391306034,1760494233058,-500.0,0.00013883,2]
[391306035,1760494233067,-500.0,0.00013883,2]
[391306036,1760494233076,-500.0,0.00013883,2]
[391306037,1760494233085,-500.0,0.00013883,2]
[391306038,1760494233095,-500.0,0.00013883,2]
[391306039,1760494233104,-284.17697785,0.00013883,2]
[391306040,1760494233114,-151.0,0.00013883,2]
[391306041,1760494233124,-151.0,0.00013883,2]
[391306042,1760494233133,-151.0,0.00013883,2]
[391306043,1760494233143,-151.0,0.00013883,2]
[391306044,1760494233152,-151.0,0.00013883,2]
[391306045,1760494233162,-151.0,0.00013883,2]
[391306046,1760494233172,-201.93419527,0.00013883,2]
[391306047,1760494233181,-333.64663694,0.00013883,2]
[391306048,1760494233190,-238.69,0.00013887,2]
[391306049,1760494233200,-150.0,0.00013891,2]
[391306050,1760494233209,-2715.3154708,0.00013891,2]
[391306051,1760494233220,-264.02851711,0.00013891,2]
[391306052,1760494233232,-2432.0,0.00013891,2]
[391306053,1760494233241,-500.0,0.00013891,2]
[391306054,1760494233551,-500.0,0.00013891,2]
[391306055,1760494233574,-150.0,0.00013891,2]
[391306056,1760494233584,-1373.0,0.00013891,2]
[391306057,1760494233593,-150.0,0.00013891,2]
[391306058,1760494233602,-151.97121377,0.00013891,2]
[391306059,1760494233611,-188.52,0.00013899,2]
[391306060,1760494233620,-1289.6,0.00013908,2]
[391306061,1760494233630,-474.58,0.00013941,2]
[391306062,1760494233639,-2432.0,0.00013946,2]
[391306063,1760494233648,-500.0,0.00013946,2]
[391306064,1760494233657,-500.0,0.00013946,2]
[391306065,1760494233667,-153.83665215,0.00013946,2]
[391306066,1760494233675,-1373.0,0.00013946,2]
[391306067,1760494233685,-150.0,0.00013946,2]
[391306068,1760494233694,-1000.0,0.00013964,2]
[391306069,1760494233703,-1016.68,0.00013987,2]
[391306070,1760494233712,-351.118582,0.00014,2]
[391306071,1760494233721,-2432.0,0.00014001,2]
[391306072,1760494233730,-500.0,0.00014001,2]
[391306073,1760494233739,-500.0,0.00014001,2]
[391306074,1760494233748,-1373.0,0.00014001,2]
[391306075,1760494233757,-150.0,0.00014001,2]
[391306076,1760494233766,-168.0,0.00014014,2]
[391306077,1760494233775,-168.0,0.00014033,2]
[391306078,1760494233784,-501.15613038,0.0001405,2]
[391306079,1760494233793,-500.46543124,0.0001405,2]
[391306080,1760494233802,-2432.0,0.00014055,2]
[391306081,1760494233811,-500.0,0.00014055,2]
[391306082,1760494233821,-500.0,0.00014055,2]
[391306083,1760494233830,-1373.0,0.00014055,2]
[391306084,1760494233839,-184.9130645,0.00014055,2]
[391306085,1760494233847,-152.40039207,0.00014102,2]
[391306086,1760494233857,-150.0,0.00014102,2]
[391306087,1760494233866,-150.0,0.00014102,2]
[391306088,1760494233875,-151.73234121,0.00014102,2]
[391306089,1760494233884,-150.0,0.00014102,2]
[391306090,1760494233893,-500.0,0.00014102,2]
[391306091,1760494233902,-150.0,0.00014102,2]
[391306092,1760494233911,-150.0,0.00014102,2]
[391306093,1760494233920,-166.89683447,0.00014102,2]
[391306094,1760494233930,-150.0,0.00014102,2]
[391306095,1760494233939,-150.0,0.00014102,2]
[391306096,1760494233949,-500.0,0.00014102,2]
[391306097,1760494233959,-233.87830773,0.00014102,2]
[391306098,1760494233968,-500.0,0.00014102,2]
[391306099,1760494233977,-500.0,0.00014102,2]
[391306100,1760494233987,-150.0,0.00014102,2]
[391306101,1760494233996,-500.0,0.00014102,2]
[391306102,1760494234006,-150.0,0.00014102,2]
[391306103,1760494234015,-150.0,0.00014102,2]
[391306104,1760494234024,-150.0,0.00014102,2]
[391306105,1760494234034,-153.83164194,0.00014102,2]
[391306106,1760494234043,-150.0,0.00014102,2]
[391306107,1760494234053,-150.0,0.00014102,2]
[391306108,1760494234062,-168.0,0.00014102,2]
[391306109,1760494234072,-2432.0,0.0001411,2]
[391306110,1760494234082,-500.0,0.0001411,2]
[391306111,1760494234091,-500.0,0.0001411,2]
[391306112,1760494234101,-1373.0,0.0001411,2]
[391306113,1760494234110,-474.58,0.00014141,2]
[391306114,1760494234119,-150.0,0.00014157,2]
[391306115,1760494234129,-150.0,0.00014157,2]
[391306116,1760494234139,-202.69547067,0.00014157,2]
[391306117,1760494234148,-500.0,0.00014157,2]
[391306118,1760494234157,-291.03464843,0.00014157,2]
[391306119,1760494234166,-150.0,0.00014157,2]
[391306120,1760494234176,-150.0,0.00014157,2]
[391306121,1760494234185,-287.82819955,0.00014157,2]
[391306122,1760494234195,-500.0,0.00014157,2]
[391306123,1760494234205,-500.0,0.00014157,2]
[391306124,1760494234214,-500.0,0.00014157,2]
[391306125,1760494234228,-150.0,0.00014157,2]
[391306126,1760494234237,-150.0,0.00014157,2]
[391306127,1760494234246,-150.0,0.00014157,2]
[391306128,1760494234255,-257.78319801,0.00014157,2]
[391306129,1760494234265,-2809.46,0.00014157,2]
[391306130,1760494234274,-2432.0,0.00014165,2]
[391306131,1760494234283,-500.0,0.00014165,2]
[391306132,1760494234292,-500.0,0.00014165,2]
[391306133,1760494234304,-1373.0,0.00014165,2]
[391306134,1760494234313,-150.0,0.00014212,2]
[391306135,1760494234322,-258.58009898,0.00014212,2]
[391306136,1760494234332,-353.74813304,0.00014212,2]
[391306137,1760494234341,-150.0,0.00014212,2]
[391306138,1760494234350,-150.0,0.00014212,2]
[391306139,1760494234360,-500.0,0.00014212,2]
[391306140,1760494234371,-500.0,0.00014212,2]
[391306141,1760494234380,-500.0,0.00014212,2]
[391306142,1760494234390,-23.12596597,0.00014212,2]
[391306143,1760494234403,-126.87403403,0.00014212,2]
[391306144,1760494234413,-179.95766714,0.00014212,2]
[391306145,1760494234422,-232.55667366,0.00014212,2]
[391306146,1760494234432,-9552.16786547,0.00014218,2]
[391306147,1760494234441,-500.0,0.00014218,2]
[391306148,1760494234450,-693.3919763,0.00014218,2]
[391306149,1760494234459,-500.0,0.00014218,2]
[391306150,1760494234468,-500.0,0.00014218,2]
[391306151,1760494234476,-500.0,0.00014218,2]
[391306152,1760494234486,-500.0,0.00014218,2]
[391306153,1760494234494,-500.0,0.00014218,2]
[391306154,1760494234503,-152.13859243,0.00014218,2]
[391306155,1760494234512,-252.88141652,0.00014218,2]
[391306156,1760494234521,-301.24848689,0.00014218,2]
[391306157,1760494234531,-618.39907759,0.00014218,2]
[391306158,1760494234540,-721.12765535,0.00014218,2]
[391306159,1760494234548,-277.35679052,0.00014218,2]
[391306160,1760494234558,-151.0,0.00014218,2]
[391306161,1760494234567,-2000.0,0.00014218,2]
[391306162,1760494234575,-2000.0,0.00014218,2]
[391306163,1760494234584,-2000.0,0.00014218,2]
[391306164,1760494234593,-2000.0,0.00014218,2]
[391306165,1760494234602,-2000.0,0.00014218,2]
[391306166,1760494234611,-467.21869513,0.00014218,2]
[391306167,1760494234622,-322.6107,0.00014218,2]
[391306168,1760494234631,-2432.0,0.0001422,2]
[391306169,1760494234639,-500.0,0.0001422,2]
[391306170,1760494234648,-500.0,0.0001422,2]
[391306171,1760494234658,-1373.0,0.0001422,2]
[391306172,1760494234667,-3000.0,0.00014238,2]
[391306173,1760494234676,-949.16,0.00014241,2]
[391306174,1760494234685,-168.0,0.00014257,2]
[391306175,1760494234694,-500.72066446,0.0001426,2]
[391306176,1760494234703,-500.0,0.0001426,2]
[391306177,1760494234712,-150.0,0.00014266,2]
[391306178,1760494234721,-150.0,0.00014266,2]
[391306179,1760494234730,-253.52800363,0.00014266,2]
[391306180,1760494234740,-500.0,0.00014266,2]
[391306181,1760494234749,-206.75617244,0.00014266,2]
[391306182,1760494234758,-317.76651524,0.00014266,2]
[391306183,1760494234768,-150.0,0.00014266,2]
[391306184,1760494234777,-156.34608271,0.0001427,2]
[391306185,1760494234786,-9905.5980765,0.00014273,2]
[391306186,1760494234795,-2432.0,0.00014275,2]
[391306187,1760494234804,-500.0,0.00014275,2]
[391306188,1760494234813,-640.68514015,0.00014275,2]
[391306189,1760494234822,-1373.0,0.00014275,2]
[391306190,1760494234831,-168.0,0.00014285,2]
[391306191,1760494234840,-150.0,0.00014321,2]
[391306192,1760494234849,-264.07012202,0.00014321,2]
[391306193,1760494234858,-150.0,0.00014321,2]
[391306194,1760494234867,-9839.09629722,0.00014328,2]
[391306195,1760494234908,-433.00890811,0.00014328,2]
[391306196,1760494234917,-1690.78260891,0.00014329,2]
[391306203,1760494238135,-900.0,0.00013082,2]
[391306204,1760494238145,-159.51463764,0.00014272,2]
[391306205,1760494238155,-500.0,0.00014272,2]
[391306206,1760494238164,-500.0,0.00014272,2]
[391306207,1760494238439,-500.0,0.00014272,2]
[391306209,1760494238461,-516.2174976,0.00014272,2]
[391306211,1760494238471,-500.0,0.00014272,2]
[391306213,1760494238480,-500.0,0.00014272,2]
[391306215,1760494238490,-500.0,0.00014272,2]
[391306217,1760494238499,-500.0,0.00014272,2]
[391306219,1760494238508,-500.0,0.00014272,2]
[391306221,1760494238517,-500.0,0.00014272,2]
[391306222,1760494238527,-500.0,0.00014272,2]
[391306223,1760494238536,-500.0,0.00014272,2]
[391306225,1760494238545,-500.0,0.00014272,2]
[391306226,1760494238555,-500.0,0.00014272,2]
[391306228,1760494238564,-500.0,0.00014272,2]
[391306230,1760494238573,-500.0,0.00014272,2]
[391306232,1760494238583,-500.0,0.00014272,2]
[391306234,1760494238592,-500.0,0.00014272,2]
[391306237,1760494238602,-500.0,0.00014272,2]
[391306239,1760494238611,-500.0,0.00014272,2]
[391306240,1760494238622,-500.0,0.00014272,2]
[391306242,1760494238631,-741.21739109,0.00014329,2]
[391306244,1760494238641,-500.0,0.00014329,2]
[391306245,1760494238651,-1373.0,0.00014329,2]
[391306246,1760494238661,-168.0,0.00014339,2]
[391306247,1760494238671,-203.58785703,0.00014376,2]
[391306248,1760494238681,-151.33400897,0.00014376,2]
[391306249,1760494238690,-833.8,0.00014378,2]
[391306250,1760494238700,-3351.40181771,0.00014383,2]
[391306251,1760494238712,-1000.0,0.00014383,2]
[391306252,1760494238724,-1144.0,0.00014383,2]
[391306255,1760494240080,-5156.77128021,0.00014383,2]
[391306256,1760494240090,-2432.0,0.00014384,2]
[391306257,1760494240100,-500.0,0.00014384,2]
[391306258,1760494240110,-1373.0,0.00014384,2]
[391306259,1760494240120,-195.0,0.00014408,2]
[391306260,1760494240130,-2000.0,0.00014408,2]
[391306261,1760494240139,-250.0,0.00014408,2]
[391306262,1760494240149,-195.0,0.00014408,2]
[391306263,1760494240159,-2809.46,0.00014431,2]
[391306264,1760494240169,-451.0,0.00014435,2]
[391306265,1760494240178,-11046.30350255,0.00014438,2]
[391306266,1760494240188,-2432.0,0.00014439,2]
[391306267,1760494240198,-516.03617143,0.00014439,2]
[391306268,1760494240207,-1373.0,0.00014439,2]
[391306269,1760494240217,-900.0,0.00014452,2]
[391306270,1760494240236,-300.33,0.00014466,2]
[391306271,1760494240245,-195.0,0.00014481,2]
[391306272,1760494240254,-195.0,0.00014481,2]
[391306273,1760494240264,-250.0,0.00014481,2]
[391306274,1760494240275,-2000.0,0.00014481,2]
[391306275,1760494240288,-253.43658451,0.00014481,2]
[391306276,1760494240299,-2000.0,0.00014481,2]
[391306277,1760494240309,-11455.01673214,0.00014493,2]
[391306278,1760494240318,-2432.0,0.00014494,2]
[391306279,1760494240327,-1373.0,0.00014494,2]
[391306280,1760494240337,-210.86274164,0.00014503,2]
[391306281,1760494240347,-11878.85235123,0.00014548,2]
[391306282,1760494240356,-2432.0,0.00014549,2]
[391306283,1760494240366,-1373.0,0.00014549,2]
[391306284,1760494240377,-210.86274161,0.0001456,2]
[391306285,1760494240386,-474.58,0.000146,2]
[391306286,1760494240396,-12318.36988823,0.00014603,2]
[391306287,1760494240406,-2432.0,0.00014603,2]
[391306288,1760494240415,-1373.0,0.00014603,2]
[391306289,1760494240425,-17508.40964315,0.00014613,2]
[391306290,1760494240434,-210.86274161,0.00014616,2]
[391306291,1760494240444,-255.0,0.00014618,2]
[391306292,1760494240454,-451.0,0.00014619,2]
[391306293,1760494240463,-451.0,0.00014622,2]
[391306294,1760494240473,-1680.0,0.00014639,2]
[391306295,1760494240486,-17508.40964312,0.00014643,2]
[391306296,1760494240496,-12774.14957409,0.00014658,2]
[391306298,1760494240506,-238.69,0.00014658,2]
[391306300,1760494240515,-2432.0,0.00014658,2]
[391306302,1760494240525,-1373.0,0.00014658,2]
[391306303,1760494240534,-17508.40964312,0.00014672,2]
[391306304,1760494240544,-210.86274161,0.00014673,2]
[391306305,1760494240554,-990.19192484,0.0001468,2]
[391306306,1760494240563,-151.0,0.00014683,2]
[391306307,1760494240573,-151.0,0.00014684,2]
[391306308,1760494240582,-151.0,0.00014684,2]
[391306309,1760494240592,-151.0,0.00014688,2]
[391306310,1760494240601,-151.0,0.00014693,2]
[391306311,1760494240610,-195.0,0.00014696,2]
[391306312,1760494240620,-300.0,0.00014696,2]
[391306313,1760494240631,-300.0,0.00014696,2]
[391306314,1760494240640,-300.0,0.00014696,2]
[391306315,1760494240650,-300.0,0.00014696,2]
[391306316,1760494240659,-429.84151127,0.00014696,2]
[391306317,1760494240669,-713.35939,0.000147,2]
[391306318,1760494240681,-17508.40964312,0.00014702,2]
[391306319,1760494240691,-2809.46,0.00014705,2]
[391306320,1760494240700,-13246.79310833,0.00014713,2]
[391306321,1760494240710,-2432.0,0.00014713,2]
[391306322,1760494240720,-1373.0,0.00014713,2]
[391306323,1760494240730,-152.735175,0.00014718,2]
[391306324,1760494240739,-161.859851,0.00014718,2]
[391306325,1760494240749,-157.821237,0.00014718,2]
[391306326,1760494240758,-151.0,0.00014718,2]
[391306327,1760494240767,-151.0,0.00014718,2]
[391306328,1760494240777,-151.0,0.00014718,2]
[391306329,1760494240787,-1159.30495,0.00014718,2]
[391306330,1760494240796,-1159.30495,0.00014718,2]
[391306331,1760494240806,-420.0,0.00014719,2]
[391306332,1760494240816,-420.0,0.00014719,2]
[391306333,1760494240826,-210.86274161,0.0001473,2]
[391306334,1760494240835,-17508.40964312,0.00014732,2]
[391306335,1760494240844,-2500.0,0.00014759,3]
[391306336,1760494240854,-17508.40964312,0.00014761,2]
[391306337,1760494240864,-269.17583591,0.00014766,2]
[391306338,1760494240876,-11493.25571105,0.00014768,2]
[391306339,1760494240888,-2432.0,0.00014768,2]
[391306340,1760494240898,-1373.0,0.00014768,2]
[391306341,1760494240907,-2500.0,0.00014768,3]
[391306342,1760494240918,-1680.0,0.00014769,2]
[391306343,1760494240927,-451.0,0.0001477,2]
[391306344,1760494240937,-9111.09217206,0.00014772,2]
[391306345,1760494240947,-883.69099084,0.00014774,2]
[391306346,1760494240956,-2500.0,0.00014777,3]
[391306347,1760494240965,-2500.0,0.00014786,3]
[391306348,1760494240975,-210.86274161,0.00014787,2]
[391306349,1760494240985,-17508.40964312,0.00014791,2]
[391306350,1760494240995,-2500.0,0.00014794,3]
[391306351,1760494241005,-1105.3961,0.000148,2]
[391306352,1760494241015,-371.22699401,0.000148,2]
[391306353,1760494241025,-250.0,0.000148,2]
[391306354,1760494241035,-250.0,0.000148,2]
[391306355,1760494241044,-250.0,0.000148,2]
[391306356,1760494241054,-250.0,0.000148,2]
[391306357,1760494241063,-250.0,0.000148,2]
[391306358,1760494241076,-250.0,0.000148,2]
[391306359,1760494241085,-250.0,0.000148,2]
[391306360,1760494241095,-250.0,0.000148,2]
[391306361,1760494241104,-250.0,0.000148,2]
[391306362,1760494241114,-250.0,0.000148,2]
[391306363,1760494241126,-250.0,0.000148,2]
[391306364,1760494241135,-257.4,0.000148,2]
[391306365,1760494241145,-2500.0,0.00014803,3]
[391306366,1760494241154,-500.0,0.00014808,2]
[391306367,1760494241164,-166.84741503,0.00014809,2]
[391306368,1760494241173,-2500.0,0.00014812,3]
[391306369,1760494241183,-157.154957,0.00014813,2]
[391306370,1760494241193,-390.168249,0.00014813,2]
[391306371,1760494241203,-390.168249,0.00014813,2]
[391306372,1760494241212,-151.0,0.00014813,2]
[391306373,1760494241225,-390.168249,0.00014813,2]
[391306374,1760494241234,-390.168249,0.00014813,2]
[391306375,1760494241244,-151.767301,0.00014813,2]
[391306376,1760494241254,-431.442665,0.00014813,2]
[391306377,1760494241263,-157.697212,0.00014813,2]
[391306378,1760494241274,-151.0,0.00014813,2]
[391306379,1760494241284,-431.442665,0.00014813,2]
[391306380,1760494241294,-157.697212,0.00014813,2]
[391306381,1760494241305,-201.589283,0.00014813,2]
[391306382,1760494241315,-2316.302149,0.00014813,2]
[391306383,1760494241324,-431.442665,0.00014813,2]